bitfinex/quotes_ETHUSD_20250814
["timestamp","ask_amount","ask_price","bid_price","bid_amount"]
[1755185074568,0.002,4615.9,4615.8,3.08307168]
[1755185075071,0.002,4615.9,4614.6,6.37803506]
[1755185075072,0.002,4615.9,4614.9,0.4561]
[1755185075858,0.002,4615.9,4615.2,2.16674882]
[1755185076091,0.002,4615.9,4614.5,0.0008]
[1755185076296,0.4721,4615.9,4614.5,0.0008]
[1755185076597,2.16684132,4615.1,4614.1,2.16725085]
[1755185076796,2.63684501,4615.3,4614.3,2.16716926]
[1755185076954,0.4701,4615.3,4614.2,0.21672508]
[1755185077292,0.4701,4615.3,4613.2,0.4605]
[1755185077293,0.49718441,4615.2,4612.7,0.4605]
[1755185077457,2.16688573,4615.0,4614.0,2.16731269]
[1755185077659,0.002,4615.9,4614.0,0.4561]
[1755185077885,2.16844252,4615.9,4614.2,2.16722292]
[1755185078082,2.16844252,4615.9,4614.0,0.4561]
[1755185078083,0.002,4615.9,4614.8,2.16690795]
[1755185078400,2.16665461,4615.5,4614.0,0.4561]
[1755185078601,2.16671962,4615.3,4614.4,2.16710213]
[1755185078804,0.49718265,4615.5,4614.1,0.26235107]
[1755185079007,0.002,4615.9,4614.0,0.4561]
[1755185079008,0.002,4615.9,4615.3,2.16670584]
[1755185079210,2.16647168,4615.8,4614.2,2.62331729]
[1755185079511,0.4701,4615.8,4613.8,0.4561]
[1755185079803,0.4701,4615.8,4613.9,0.4605]
[1755185080012,2.16658586,4615.6,4614.7,2.16695766]
[1755185080323,2.16662533,4615.5,4614.6,2.16701269]
[1755185080615,2.16656556,4615.6,4613.8,0.4561]
[1755185080817,2.16666556,4615.4,4614.5,2.16704072]
[1755185081120,2.16666556,4615.4,4614.6,2.16703342]
[1755185081276,0.002,4615.9,4613.9,0.26235551]
[1755185081476,2.1664851,4615.8,4614.6,2.16701941]
[1755185081694,2.1664851,4615.8,4615.0,2.16683521]
[1755185082409,0.002,4615.9,4614.4,0.4561]
[1755185082981,0.002,4615.9,4614.5,0.26232343]
[1755185083209,0.002,4615.9,4615.7,2.16650075]
[1755185083416,0.002,4615.9,4614.6,0.4561]
[1755185083620,0.002,4615.9,4615.7,0.108]
[1755185083795,0.002,4615.9,4615.7,0.1088]
[1755185084420,2.16661532,4615.5,4615.1,0.108]
[1755185084829,0.108,4615.8,4613.9,0.26335551]
[1755185085132,0.002,4615.9,4609.7,0.4561]
[1755185085133,2.16830373,4611.9,4609.7,0.4561]
[1755185085334,9.96906041,4611.9,4609.7,0.4561]
[1755185085650,10.80385662,4611.9,4609.7,0.4561]
[1755185085781,9.97840373,4611.9,4609.7,0.4561]
[1755185086214,6.50830373,4611.9,4610.4,0.4561]
[1755185086550,6.50830373,4611.9,4611.8,1e-08]
[1755185086856,40.53498868,4611.9,4611.8,1e-08]
[1755185087018,40.72939555,4611.9,4611.8,1e-08]
[1755185087350,2.80318868,4611.9,4611.8,1e-08]
[1755185087551,10.16529247,4611.9,4611.8,1e-08]
[1755185087750,10.13818868,4611.9,4611.8,1e-08]
[1755185088451,5.80318868,4611.9,4611.8,1e-08]
[1755185088672,10.12618868,4611.9,4611.8,1e-08]
[1755185089227,10.51798868,4611.9,4611.8,1e-08]
[1755185089630,5.80318868,4611.9,4611.8,1e-08]
[1755185089969,10.12118868,4611.9,4611.8,1e-08]
[1755185091190,5.80318868,4611.9,4611.8,1e-08]
[1755185091338,10.50398868,4611.9,4611.8,1e-08]
[1755185091539,40.50398868,4611.9,4611.8,1e-08]
[1755185092160,41.20398868,4611.9,4611.8,1e-08]
[1755185093478,41.85484468,4611.9,4611.8,1e-08]
[1755185094156,41.85484468,4611.9,4611.8,0.00080001]
[1755185094883,42.40484468,4611.9,4611.8,0.00080001]
[1755185095072,42.51364468,4611.9,4611.8,0.00080001]
[1755185095389,36.03714095,4611.9,4609.3,0.1088]
[1755185095543,36.03714095,4611.9,4604.8,2.20967638]
[1755185095544,0.55,4609.6,4604.8,2.20967638]
[1755185095747,2.1700447,4608.2,4607.6,0.4834]
[1755185096058,6.47817025,4608.2,4607.6,0.4834]
[1755185096263,6.4510447,4608.2,4607.6,0.4834]
[1755185096640,6.4510447,4608.2,4606.3,2.17091108]
[1755185096853,30.0,4608.1,4605.7,0.4834]
[1755185097093,2.17018598,4607.9,4605.8,0.4834]
[1755185097245,4.31412791,4607.8,4605.8,0.4834]
[1755185097446,4.288,4607.7,4605.8,0.4834]
[1755185097698,4.26897519,4608.2,4605.8,0.4834]
[1755185097699,4.31412909,4607.6,4605.8,0.4834]
[1755185097849,4.287,4607.5,4605.8,0.4834]
[1755185098049,2.19757938,4607.4,4605.8,0.4834]
[1755185098404,0.02713026,4607.4,4605.8,0.4834]
[1755185098688,0.21899955,4610.2,4606.0,3.55]
[1755185098880,2.16998313,4608.4,4606.1,0.9348]
[1755185099057,4.7773,4610.1,4606.3,2.17093979]
[1755185099058,4.324,4608.3,4606.3,2.17093979]
[1755185099255,4.324,4608.3,4606.4,1.54537398]
[1755185099458,4.324,4608.3,4607.2,2.17048345]
[1755185099692,0.02712555,4608.2,4606.9,0.4834]
[1755185099892,4.324,4608.3,4605.2,2.17141665]
[1755185099893,4.324,4608.3,4607.1,2.17056282]
[1755185100192,4.324,4608.3,4607.0,0.9348]
[1755185100193,4.327,4608.8,4607.3,2.1704686]
[1755185100389,4.327,4608.8,4605.0,4.327]
[1755185100390,4.325,4609.8,4607.4,0.9348]
[1755185100564,4.325,4610.0,4607.5,0.9348]
[1755185100766,4.325,4610.2,4608.4,2.16993225]
[1755185100956,0.65087,4611.2,4608.5,1.15179323]
[1755185100957,4.325,4610.1,4608.5,1.15179323]
[1755185101194,4.325,4610.1,4606.8,2.72066938]
[1755185101195,34.80341496,4610.0,4603.9,0.1]
[1755185101395,2.17053148,4607.2,4604.9,0.9348]
[1755185101595,4.352,4607.1,4605.0,0.9348]
[1755185101791,4.352,4607.1,4605.1,0.4834]
[1755185101990,5.203,4608.7,4605.1,0.4834]
[1755185101991,5.203,4608.7,4605.1,0.9348]
[1755185102197,4.3881232,4608.6,4605.3,2.1714112]
[1755185102395,2.16999761,4608.3,4605.4,0.9348]
[1755185102698,30.48042555,4608.2,4605.5,0.4834]
[1755185102925,5.36710789,4608.7,4607.5,2.17036771]
[1755185103124,5.203,4608.7,4607.6,0.4834]
[1755185103750,4.362,4608.8,4607.8,2.17023308]
[1755185104036,4.36,4609.7,4607.9,1.24530331]
[1755185104252,4.359,4609.9,4608.8,2.16976024]
[1755185104551,4.359,4609.9,4608.9,2.6530999]
[1755185104842,5.203,4610.5,4609.0,0.4834]
[1755185104992,6.52402152,4610.4,4609.1,2.16958411]
[1755185105197,6.52402152,4610.4,4609.0,0.9348]
[1755185105198,4.355,4610.4,4609.6,2.16938355]
[1755185105415,4.355,4610.4,4610.0,0.1088]
[1755185105597,4.355,4610.4,4609.0,0.4514]
[1755185105598,30.0,4610.0,4607.2,0.4514]
[1755185105797,0.1088,4609.8,4608.3,0.1088]
[1755185105999,0.1088,4609.8,4606.4,0.16059788]
[1755185106000,0.65105,4610.3,4609.0,0.1088]
[1755185106198,2.16933221,4609.8,4607.5,2.17036784]
[1755185106420,2.16933221,4609.8,4606.2,2.17094166]
[1755185106421,0.1088,4609.1,4608.4,0.1088]
[1755185106621,2.16947975,4609.4,4608.2,2.17002997]
[1755185106827,2.16947975,4609.4,4607.8,0.4514]
[1755185106828,2.16981297,4608.7,4607.8,0.4514]
[1755185107098,2.16962089,4609.2,4607.3,2.17042955]
[1755185107298,0.55,4608.9,4605.9,0.4514]
[1755185107554,2.17028018,4607.7,4605.9,0.4514]
[1755185107715,6.52228018,4607.7,4606.1,2.17102672]
[1755185107917,0.79301203,4608.8,4604.9,2.17155316]
[1755185108124,4.37912261,4608.7,4606.9,0.4834]
[1755185108299,30.64569121,4608.6,4606.3,0.4834]
[1755185108500,0.55,4607.9,4605.5,0.4834]
[1755185108732,2.17094838,4606.3,4605.5,0.4834]
[1755185108944,0.02713026,4607.4,4605.5,0.4834]
[1755185109147,2.17039085,4607.5,4605.5,2.65471071]
[1755185109301,2.38978885,4607.7,4605.6,0.31061107]
[1755185109502,0.0271285,4607.7,4605.7,2.17122261]
[1755185109839,0.16581189,4609.2,4595.2,8.22442125]
[1755185110038,4.38712026,4609.1,4605.1,2.1715055]
[1755185110203,0.1,4608.3,4605.4,2.17136405]
[1755185110403,4.36,4608.2,4604.2,4.36]
[1755185110602,0.16262746,4609.2,4605.1,19.54353454]
[1755185110814,0.1,4607.7,4604.1,0.001]
[1755185111013,0.1,4608.2,4604.2,4.356]
[1755185111204,0.1,4608.7,4605.9,2.1710887]
[1755185111398,0.21991845,4609.0,4604.3,0.4357]
[1755185111399,0.1927976,4609.0,4606.4,2.17088705]
[1755185111637,0.1,4609.3,4607.0,2.17059599]
[1755185111841,0.1927976,4609.9,4609.0,2.16966804]
[1755185111842,0.651161,4609.1,4609.0,2.16966804]
[1755185112008,0.1744,4610.0,4608.3,0.2237]
[1755185112204,0.1,4609.2,4606.7,2.17075129]
[1755185112536,2.16934348,4609.7,4608.7,2.16977398]
[1755185112737,0.1927976,4609.6,4607.5,0.2237]
[1755185112946,0.1927976,4609.5,4607.5,0.2237]
[1755185113153,0.2927976,4609.5,4607.5,0.2245]
[1755185113322,0.0744,4610.0,4607.5,0.2245]
[1755185113323,0.1,4609.8,4607.5,2.39484644]
[1755185113524,0.1,4609.8,4609.7,2.16933856]
[1755185113729,0.19382196,4609.8,4609.7,2.16933856]
[1755185114025,0.0744,4610.0,4608.7,0.2237]
[1755185114213,0.19431453,4609.9,4609.8,2.16927044]
[1755185114605,0.19431453,4609.9,4608.7,0.2237]
[1755185114800,0.1,4609.4,4605.3,7.37941092]
[1755185115034,0.29428852,4609.3,4607.2,0.2237]
[1755185115258,0.29428852,4609.3,4605.3,0.003]
[1755185115259,0.1,4608.8,4605.3,0.003]
[1755185115409,5.03978852,4609.2,4605.3,0.003]
[1755185115410,2.27032728,4607.6,4605.3,0.003]
[1755185115753,6.42954489,4607.6,4605.3,0.003]
[1755185115956,7.0445029,4607.6,4606.3,2.17091032]
[1755185116116,7.20879571,4607.6,4606.2,2.17098348]
[1755185116460,0.1,4606.7,4605.3,0.003]
[1755185116607,0.1,4606.0,4605.3,0.003]
[1755185116806,2.17136117,4605.5,4605.3,0.003]
[1755185117004,0.1,4605.7,4605.3,0.003]
[1755185117005,0.64758852,4605.4,4605.3,0.003]
[1755185117243,0.64758852,4605.4,4605.3,0.1118]
[1755185117446,0.19428852,4605.4,4605.3,0.1118]
[1755185117814,0.19428852,4605.4,4605.3,2.2832112]
[1755185118008,0.19428852,4605.4,4605.3,2.61988138]
[1755185118208,0.1,4606.3,4605.3,2.61988094]
[1755185118407,0.1,4606.3,4605.6,2.17126508]
[1755185118408,0.19410996,4606.2,4605.6,2.17126508]
[1755185118740,0.19410996,4606.2,4605.3,0.003]
[1755185118741,0.19410996,4606.1,4605.8,2.17116005]
[1755185118946,0.19410996,4606.0,4605.3,0.003]
[1755185119111,0.1,4606.2,4605.3,0.003]
[1755185119112,0.19410996,4605.9,4605.3,0.003]
[1755185119439,0.19410996,4605.8,4605.7,2.17122261]
[1755185120333,0.1,4606.6,4606.2,2.17096599]
[1755185120647,0.1943295,4606.5,4605.3,0.003]
[1755185120808,0.1943295,4606.4,4605.3,0.003]
[1755185121008,0.1943295,4606.3,4605.3,0.003]
[1755185121225,0.1943295,4606.2,4605.4,2.17136405]
[1755185121421,0.1943295,4606.1,4605.3,0.003]
[1755185121673,0.1943295,4606.0,4605.3,2.17437682]
[1755185121883,0.1943295,4605.9,4605.3,0.003]
[1755185122097,0.1943295,4605.8,4605.3,0.003]
[1755185122235,0.1,4605.6,4605.3,0.003]
[1755185122583,0.1943295,4605.5,4605.4,2.17136405]
[1755185122928,0.1943295,4605.5,4605.3,0.003]
[1755185123137,5.0641295,4605.4,4605.3,0.003]
[1755185123328,0.6391295,4605.4,4605.3,0.0038]
[1755185123552,0.2943295,4605.4,4605.3,0.0038]
[1755185123732,0.1943295,4605.4,4605.3,0.0038]
[1755185124349,1.56096245,4605.4,4605.3,0.0038]
[1755185124663,8.0523265,4605.4,4605.3,0.0038]
[1755185124971,3.7323265,4605.4,4605.3,0.0038]
[1755185125277,8.5993265,4605.4,4605.3,0.0038]
[1755185125478,2.27192997,4604.2,4604.1,0.001]
[1755185125682,7.23005947,4604.2,4604.1,0.001]
[1755185126032,5.0581295,4604.2,4604.1,0.001]
[1755185126252,7.23005947,4604.2,4604.1,0.001]
[1755185126458,7.23005947,4604.2,4600.7,0.2237]
[1755185126459,0.1,4603.2,4600.7,0.2237]
[1755185126685,0.1,4603.2,4597.5,1.08301812]
[1755185126686,0.1,4602.8,4599.4,0.4702]
[1755185126886,0.1,4602.5,4600.9,2.17345072]
[1755185127158,0.1943295,4602.4,4600.7,2.17358228]
[1755185127392,0.1943295,4602.3,4600.6,0.4702]
[1755185127692,0.19372468,4602.2,4600.8,0.2237]
[1755185127893,0.19372468,4602.1,4602.0,2.17296827]
[1755185128066,0.19372468,4602.1,4602.0,2.3902651]
[1755185128276,0.19372468,4602.1,4602.0,0.32609683]
[1755185128487,0.19372468,4602.1,4602.0,2.28176827]
[1755185128788,4.49372468,4602.1,4600.2,0.2237]
[1755185128983,0.19372468,4602.0,4601.9,2.17301549]
[1755185129299,0.19372468,4602.0,4600.3,2.17377127]
[1755185129485,0.19372468,4601.9,4600.6,2.17359177]
[1755185129659,0.19372468,4601.9,4599.4,2.17419663]
[1755185129660,4.49072468,4601.8,4599.4,2.17419663]
[1755185129855,0.19372468,4601.7,4599.5,0.6939]
[1755185130195,0.1,4602.5,4599.5,0.6939]
[1755185130196,0.19372468,4601.6,4599.6,0.2237]
[1755185130400,4.295,4601.7,4601.6,2.17315716]
[1755185130605,4.48802564,4601.7,4601.6,2.17315716]
[1755185130900,4.48802564,4601.7,4599.9,2.17395068]
[1755185131114,0.19302564,4601.6,4600.0,0.21739507]
[1755185131370,0.19302564,4601.6,4597.7,12.15961101]
[1755185131371,0.1,4601.4,4598.5,0.2237]
[1755185131654,0.1,4600.7,4599.8,2.17400436]
[1755185131852,0.19302564,4600.6,4599.6,2.17409352]
[1755185132065,0.19302564,4600.6,4598.3,0.4702]
[1755185132066,0.1,4599.1,4595.2,2.17615664]
[1755185132199,0.1,4597.8,4594.8,0.652408]
[1755185132399,0.19219195,4597.7,4595.5,0.6939]
[1755185132622,0.4448,4598.2,4595.5,0.6939]
[1755185132623,0.19219195,4597.6,4595.5,0.6939]
[1755185132876,0.19219195,4597.6,4596.2,2.22550455]
[1755185133054,0.19219195,4597.6,4596.2,0.04980507]
[1755185133235,0.1,4597.2,4594.8,0.11318843]
[1755185133442,0.1,4597.2,4594.7,0.4702]
[1755185133443,0.19219195,4597.1,4594.7,0.4702]
[1755185133643,0.1,4597.2,4594.7,0.4702]
[1755185133644,0.19219195,4597.0,4594.7,0.4702]
[1755185133852,0.19219195,4596.9,4594.8,4.5577]
[1755185134022,0.4448,4597.9,4595.1,2.1762312]
[1755185134023,0.19219195,4596.8,4595.1,2.1762312]
[1755185134221,15.84163601,4599.3,4594.9,4.71769]
[1755185134222,0.1,4597.1,4594.9,1.02379]
[1755185134440,0.1,4595.8,4593.5,0.4702]
[1755185134641,1.12471964,4597.0,4593.7,2.17689444]
[1755185134870,0.1,4597.4,4593.6,0.2237]
[1755185134871,0.19137361,4596.9,4595.8,3.0]
[1755185135088,0.19147611,4598.2,4596.5,11.50763601]
[1755185135385,0.19142465,4599.7,4596.7,14.50763601]
[1755185135685,0.4448,4600.5,4596.7,14.50763601]
[1755185135686,0.02716918,4600.8,4596.9,3.0]
[1755185136008,0.19141175,4601.5,4597.7,3.0]
[1755185136323,0.19141175,4601.5,4598.6,3.0]
[1755185136486,0.19141175,4601.4,4601.0,2.17341905]
[1755185136633,0.19141175,4601.4,4598.9,2.17443301]
[1755185136634,0.19141175,4601.7,4600.3,0.4702]
[1755185136979,0.1,4602.3,4600.4,4.421]
[1755185137135,0.4448,4603.0,4600.4,5.17372402]
[1755185137136,0.5448,4602.9,4600.4,5.17372402]
[1755185137336,2.17157289,4605.0,4600.4,5.17372402]
[1755185137337,0.19141175,4603.4,4601.5,2.17315862]
[1755185137590,0.4448,4604.0,4600.3,4.418]
[1755185137591,0.19141175,4603.7,4601.6,0.91121586]
[1755185137736,0.4701,4605.4,4603.8,2.17211868]
[1755185137737,0.19141175,4603.9,4603.8,2.17211868]
[1755185138083,0.19141175,4603.9,4602.3,2.17281788]
[1755185138084,0.19141175,4605.2,4603.1,4.416]
[1755185138298,0.19141175,4605.1,4603.1,4.416]
[1755185138583,0.1,4604.8,4603.2,0.93417]
[1755185138782,0.1,4605.4,4602.2,2.17287384]
[1755185138961,0.1,4605.4,4603.3,4.411]
[1755185139144,0.4448,4606.1,4602.7,0.4702]
[1755185139145,0.1,4605.0,4602.9,2.17254339]
[1755185139345,0.1,4605.0,4603.2,3.0]
[1755185139560,0.1,4605.0,4603.1,2.172449]
[1755185139561,0.1,4605.0,4603.3,4.429]
[1755185139889,0.1,4603.7,4602.2,2.17287384]
[1755185140030,0.1,4603.7,4601.9,0.4702]
[1755185140031,0.1,4603.7,4602.3,0.73848738]
[1755185140385,0.1,4603.7,4602.4,4.445]
[1755185140534,0.19194,4604.3,4602.9,2.17250964]
[1755185140731,0.19193377,4604.2,4602.4,6.61477941]
[1755185141068,0.19193377,4604.1,4602.5,2.17273221]
[1755185141272,0.1,4604.3,4603.8,2.17209965]
[1755185141483,0.19204676,4604.8,4604.2,2.17192997]
[1755185141669,2.17121344,4605.8,4602.6,0.73532196]
[1755185141670,0.1920949,4605.1,4605.0,2.17153495]
[1755185142172,0.1,4605.5,4604.8,2.17162309]
[1755185142480,0.1,4605.5,4605.3,2.17139296]
[1755185143100,0.4701,4606.5,4605.3,0.0008]
[1755185143396,0.1,4605.4,4605.3,0.0008]
[1755185143539,0.73722437,4605.4,4605.3,0.0008]
[1755185143979,0.1,4605.0,4603.8,4.424]
[1755185144290,0.1,4605.0,4603.2,2.17238588]
[1755185144291,0.1,4605.0,4603.6,2.17221305]
[1755185144584,0.1,4604.0,4603.8,2.17211689]
[1755185144789,0.1,4604.5,4604.3,2.1718674]
[1755185144989,0.4701,4605.1,4603.1,0.4702]
[1755185144990,0.1,4605.1,4603.1,0.4702]
[1755185145193,0.1,4604.5,4604.3,2.17186041]
[1755185145496,0.1,4604.5,4604.0,2.17201986]
[1755185145497,0.4701,4605.9,4603.1,0.4702]
[1755185145498,0.1,4605.4,4605.3,2.1714112]
[1755185146333,0.1,4605.7,4604.4,0.21718604]
[1755185146538,0.4701,4606.5,4604.4,0.21718604]
[1755185146760,0.1,4605.4,4605.1,2.1714904]
[1755185147040,0.19328856,4606.3,4604.5,2.17178846]
[1755185147237,0.1,4605.4,4605.3,2.1714112]
[1755185147437,0.1,4605.5,4603.7,0.4702]
[1755185147637,0.1,4605.5,4601.7,2.17307522]
[1755185147638,0.1,4604.9,4604.5,2.17178846]
[1755185147943,0.1,4604.9,4603.3,2.17231065]
[1755185148248,0.1,4604.9,4603.0,4.413]
[1755185148249,0.1,4604.6,4602.9,0.4702]
[1755185148454,0.1,4603.9,4602.9,0.1429222]
[1755185148699,0.1,4603.9,4602.1,0.6939]
[1755185148700,0.1,4603.2,4601.8,2.17306271]
[1755185148842,0.1,4603.2,4601.3,2.39696123]
[1755185148843,0.1,4603.2,4603.1,2.172449]
[1755185149042,0.1,4603.6,4603.5,2.17226023]
[1755185149246,0.1,4603.1,4602.1,2.17292105]
[1755185149483,0.1,4603.5,4603.4,2.17230742]
[1755185149684,0.1,4604.0,4603.9,2.1720715]
[1755185150393,0.1,4604.0,4602.3,2.17280786]
[1755185150394,0.1,4604.5,4603.2,0.6939]
[1755185150687,0.1,4604.5,4604.0,2.17202432]
[1755185150846,0.1,4604.5,4604.4,2.17183563]
[1755185151498,0.1,4604.5,4604.4,0.1088]
[1755185151647,0.1,4605.1,4604.5,2.17178846]
[1755185151848,0.1,4604.5,4604.4,0.1088]
[1755185152063,0.1,4604.5,4602.2,0.28668211]
[1755185152064,0.1,4602.5,4602.4,2.17277941]
[1755185152494,0.1,4602.8,4602.4,0.1088]
[1755185152698,4.8552,4603.1,4602.4,2.28157404]
[1755185152699,0.1,4602.5,4602.4,2.28157404]
[1755185152993,4.392,4603.8,4603.7,2.17216586]
[1755185153303,0.4582,4604.1,4603.7,2.17216586]
[1755185153304,0.1,4604.1,4603.7,0.6261]
[1755185153503,0.0992,4603.9,4602.0,2.79906827]
[1755185153711,0.0992,4603.4,4602.2,2.17287384]
[1755185154004,0.4582,4604.0,4603.9,2.1720715]
[1755185154197,0.0992,4603.0,4602.9,2.17254339]
[1755185154503,0.0992,4602.8,4602.7,2.17263779]
[1755185154708,0.0992,4602.8,4602.1,0.27990683]
[1755185154709,0.0992,4603.3,4603.2,2.1724018]
[1755185155001,0.5574,4603.3,4603.2,2.1724018]
[1755185155164,0.0992,4602.7,4602.4,2.17277941]
[1755185155364,0.0992,4602.7,4602.6,2.172685]
[1755185155603,0.0992,4603.1,4603.0,2.17249619]
[1755185155949,5.6672,4604.1,4602.6,2.172685]
[1755185155950,5.6672,4604.1,4604.0,2.17202432]
[1755185156196,5.209,4604.1,4602.3,0.6261]
[1755185156424,0.0992,4603.1,4603.0,2.17249619]
[1755185156689,0.0992,4601.3,4600.5,2.79976989]
[1755185156888,1.1045,4603.1,4601.8,2.17306271]
[1755185156889,0.0992,4601.9,4601.8,2.17306271]
[1755185157097,0.0992,4601.3,4600.6,0.27997699]
[1755185157302,0.4582,4602.3,4599.4,2.17415124]
[1755185157303,0.0992,4601.5,4600.1,2.17386578]
[1755185157481,0.0992,4601.5,4599.1,0.001]
[1755185157482,0.0992,4600.1,4600.0,2.17391304]
[1755185157865,0.4582,4601.9,4601.2,2.17334172]
[1755185158194,0.4582,4601.9,4599.4,0.6261]
[1755185158351,0.4582,4601.9,4601.1,2.1733516]
[1755185158553,1.24257563,4601.9,4601.1,2.1733516]
[1755185158867,1.24257563,4601.9,4599.7,2.17405482]
[1755185159069,1.24257563,4601.9,4601.1,2.17338664]
[1755185159271,0.0992,4601.1,4600.7,2.17353885]
[1755185159505,0.0992,4601.1,4599.5,0.6261]
[1755185159506,0.0992,4600.1,4600.0,2.17391304]
[1755185160176,0.0992,4600.6,4600.5,2.17367677]
[1755185161079,0.0992,4600.0,4599.1,0.001]
[1755185161282,0.0992,4599.4,4599.1,0.001]
[1755185161498,0.4582,4600.6,4599.2,2.17429118]
[1755185161808,0.4582,4600.5,4599.3,0.21752912]
[1755185162005,0.02717155,4600.4,4599.6,2.17405701]
[1755185162210,0.48537095,4600.5,4599.1,0.001]
[1755185162410,1.1045,4600.4,4599.1,0.001]
[1755185162612,4.355,4600.3,4599.1,0.001]
[1755185162777,4.355,4600.3,4599.6,2.17407433]
[1755185162973,0.48537273,4600.2,4599.1,0.001]
[1755185163217,2.17419513,4599.5,4599.1,0.001]
[1755185163521,1.13167745,4599.4,4599.3,0.1088]
[1755185163814,0.4582,4599.4,4599.3,0.1088]
[1755185164177,6.34267745,4599.4,4596.7,2.17545293]
[1755185164420,2.17458266,4598.6,4598.3,0.1088]
[1755185164711,5.48468277,4598.5,4598.3,0.1088]
[1755185164912,4.8102,4598.4,4598.3,0.1088]
[1755185165115,5.4565,4598.4,4598.3,0.1088]
[1755185165314,4.8082,4598.4,4598.3,0.1088]
[1755185165513,4.8052,4598.4,4598.3,0.1088]
[1755185165718,6.12528556,4598.4,4595.3,2.1761112]
[1755185165920,0.1088,4598.1,4597.4,0.1088]
[1755185166121,11.50763601,4597.5,4594.6,2.17643465]
[1755185166413,2.1752371,4597.2,4596.3,2.17564627]
[1755185166715,0.55,4598.0,4596.5,2.17556836]
[1755185166716,0.19326556,4597.3,4596.5,2.17556836]
[1755185166877,4.343,4597.5,4596.5,0.21755684]
[1755185167079,0.48538928,4597.4,4594.7,0.6261]
[1755185167481,0.67781374,4597.4,4595.5,2.17600021]
[1755185167681,0.55,4597.0,4593.8,0.6261]
[1755185167919,0.55,4596.8,4593.8,0.6261]
[1755185168080,0.55,4596.6,4593.1,0.00968924]
[1755185168418,0.55,4595.0,4593.1,0.00968924]
[1755185168620,5.46770407,4594.9,4593.2,2.17713141]
[1755185168781,5.214,4596.5,4593.1,0.00968924]
[1755185168979,0.4582,4596.2,4593.3,0.9596]
[1755185169315,0.6463,4596.1,4595.7,2.17593059]
[1755185169500,2.17585239,4595.9,4594.0,0.6261]
[1755185169702,0.48539874,4595.8,4593.2,0.6261]
[1755185169906,0.55,4595.7,4593.2,2.80319755]
[1755185170077,0.02719993,4595.6,4593.1,0.00968924]
[1755185170276,4.7982,4595.5,4593.1,0.63578924]
[1755185170477,0.70918221,4596.4,4593.1,0.63578924]
[1755185170478,4.339,4595.6,4595.2,2.17618262]
[1755185170779,0.4582,4596.3,4595.2,2.17618262]
[1755185170780,4.339,4596.8,4595.3,0.6261]
[1755185170976,0.4582,4597.0,4594.3,2.17656442]
[1755185170977,0.19124604,4596.7,4594.3,2.17656442]
[1755185171182,0.19124604,4596.7,4590.5,1.20266473]
[1755185171183,0.19124604,4596.8,4594.4,0.9596]
[1755185171427,4.8012,4597.7,4594.5,0.9596]
[1755185171621,2.17518978,4597.3,4594.4,0.6261]
[1755185171829,11.50763601,4596.5,4593.2,0.6261]
[1755185172131,32.22023675,4597.2,4593.1,0.34318924]
[1755185172132,3.55,4595.4,4593.1,0.00968924]
[1755185172293,5.4907017,4595.3,4593.1,0.00968924]
[1755185172621,3.0,4594.4,4593.1,0.00968924]
[1755185172823,2.17713141,4593.2,4593.1,0.00968924]
[1755185173027,2.17713141,4593.2,4593.1,0.01048924]
[1755185173028,7.67284555,4593.2,4593.1,0.01048924]
[1755185173229,6.0185,4593.2,4593.1,0.01048924]
[1755185173393,7.64563141,4593.2,4593.1,0.01048924]
[1755185173589,7.64563141,4593.2,4588.9,2.17915846]
[1755185173590,2.17722621,4593.0,4588.9,2.17915846]
[1755185173804,2.17722621,4593.0,4587.8,0.3335]
[1755185173805,0.55,4592.2,4588.8,0.087108]
[1755185174017,3.55,4591.1,4588.8,0.087108]
[1755185174185,0.55,4590.9,4588.3,2.17943763]
[1755185174520,0.55,4590.6,4588.6,2.1792898]
[1755185174685,0.55,4590.3,4588.0,2.17956237]
[1755185174890,5.218,4590.5,4589.1,2.1790765]
[1755185175106,5.218,4590.5,4588.8,2.17920496]
[1755185175107,4.362,4590.2,4587.3,0.6261]
[1755185175302,1.03243252,4590.1,4588.5,2.17934246]
[1755185175503,0.4582,4590.0,4587.1,0.6261]
[1755185175702,4.3932337,4589.9,4587.9,0.37621919]
[1755185175904,5.218,4590.5,4587.9,0.37621919]
[1755185176229,30.48543074,4590.4,4588.5,2.17931575]
[1755185176552,30.48543074,4590.4,4585.6,0.6261]
[1755185176553,0.6463,4591.1,4588.2,0.6261]
[1755185176754,0.6463,4591.1,4586.6,11.50763601]
[1755185176755,4.25822718,4591.0,4588.3,0.6261]
[1755185176926,0.4582,4591.1,4588.3,0.6261]
[1755185177132,0.4582,4591.1,4590.5,2.17837216]
[1755185177133,4.457,4591.1,4590.5,2.17837216]
[1755185177319,0.4582,4591.4,4590.9,0.1088]
[1755185177518,0.4582,4591.3,4585.9,5.22]
[1755185177718,4.456,4591.2,4588.5,0.6261]
[1755185177918,2.17822213,4590.9,4590.3,0.1088]
[1755185178127,0.02722659,4591.1,4588.5,0.6261]
[1755185178128,0.02722836,4590.8,4588.5,0.6261]
[1755185178347,0.4582,4593.0,4588.7,2.17926645]
[1755185178548,4.483,4592.9,4590.0,2.17860827]
[1755185178858,11.50763601,4592.4,4589.9,0.6261]
[1755185179053,0.55,4592.2,4589.9,0.6261]
[1755185179253,3.0,4591.9,4588.9,0.6261]
[1755185179463,4.9402,4591.8,4589.2,2.17902902]
[1755185179616,3.55,4592.6,4586.4,11.50763601]
[1755185179617,4.488,4591.7,4589.4,2.17893406]
[1755185179816,4.488,4591.7,4589.5,0.6261]
[1755185180134,0.4582,4593.6,4589.8,3.0]
[1755185180350,0.4582,4594.8,4591.3,3.0]
[1755185180521,0.4582,4594.8,4594.4,2.17655023]
[1755185180728,1.286,4595.4,4594.4,2.1765548]
[1755185180965,1.286,4595.4,4593.1,0.6261]